[Event "Masters Tournament (MTO)"]
[Site "Biel, Switzerland"]
[Date "2026.07.22"]
[Round "9.15"]
[White "Dai, Wenzhi"]
[Black "Nguyen, Thi Mai Hung"]
[Result "1/2-1/2"]
[TimeControl "100+30+30sec/move"]
[WhiteTitle "-"]
[BlackTitle "-"]
[WhiteFideId "8608369"]
[BlackFideId "12401676"]
[WhiteElo "2126"]
[BlackElo "2260"]

1. e4 {[%clk 01:38:24]} {[%emt 00:02:35]} e6 {[%clk 01:40:53]} {[%emt
00:00:08]} 2. d4 {[%clk 01:38:47]} {[%emt 00:00:07]} d5 {[%clk 01:41:18]}
{[%emt 00:00:05]} 3. Nc3 {[%clk 01:39:11]} {[%emt 00:00:05]} Nf6 {[%clk
01:41:43]} {[%emt 00:00:05]} 4. Bg5 {[%clk 01:39:35]} {[%emt 00:00:07]} dxe4
{[%clk 01:42:02]} {[%emt 00:00:12]} 5. Nxe4 {[%clk 01:39:57]} {[%emt 00:00:07]}
Nbd7 {[%clk 01:42:28]} {[%emt 00:00:04]} 6. Nf3 {[%clk 01:40:18]} {[%emt
00:00:08]} Be7 {[%clk 01:42:38]} {[%emt 00:00:21]} 7. Nxf6+ {[%emt 00:00:14]}
Nxf6 {[%clk 01:41:41]} {[%emt 00:01:20]} 8. Bd3 {[%clk 01:40:56]} {[%emt
00:00:15]} c5 {[%clk 01:40:27]} {[%emt 00:01:45]} 9. dxc5 {[%clk 01:40:30]}
{[%emt 00:00:56]} Qa5+ {[%clk 01:40:14]} {[%emt 00:00:42]} 10. c3 {[%clk
01:40:54]} {[%emt 00:00:06]} Qxc5 {[%clk 01:40:32]} {[%emt 00:00:12]} 11. Qe2
{[%clk 01:40:33]} {[%emt 00:00:51]} a6 {[%clk 01:31:18]} {[%emt 00:09:44]} 12.
O-O {[%clk 01:26:57]} {[%emt 00:14:05]} O-O {[%clk 01:26:07]} {[%emt 00:05:42]}
13. Rfd1 {[%clk 01:17:01]} {[%emt 00:10:26]} h6 {[%clk 01:20:27]} {[%emt
00:06:10]} 14. Bh4 {[%clk 01:08:03]} {[%emt 00:09:27]} Rd8 {[%clk 01:13:01]}
{[%emt 00:07:57]} 15. Rd2 {[%clk 01:03:50]} {[%emt 00:04:42]} Bd7 {[%clk
01:11:08]} {[%emt 00:02:24]} 16. Rad1 {[%clk 01:03:33]} {[%emt 00:00:46]} Ba4
{[%clk 01:09:48]} {[%emt 00:01:50]} 17. b3 {[%clk 00:59:11]} {[%emt 00:04:53]}
Bc6 {[%clk 01:09:44]} {[%emt 00:00:34]} 18. c4 {[%clk 00:59:10]} {[%emt
00:00:31]} Qh5 {[%clk 01:05:50]} {[%emt 00:04:23]} 19. Bxf6 {[%clk 00:57:55]}
{[%emt 00:01:46]} Bxf6 {[%clk 01:00:14]} {[%emt 00:06:06]} 20. Be4 {[%clk
00:57:37]} {[%emt 00:00:47]} Qc5 {[%clk 00:52:35]} {[%emt 00:08:09]} 21. Bxc6
{[%clk 00:56:21]} {[%emt 00:01:47]} Qxc6 {[%clk 00:52:47]} {[%emt 00:00:18]} 22.
h3 {[%clk 00:53:20]} {[%emt 00:03:31]} Rxd2 {[%clk 00:47:00]} {[%emt 00:06:17]}
23. Rxd2 {[%clk 00:53:35]} {[%emt 00:00:15]} Re8 {[%clk 00:46:50]} {[%emt
00:00:40]} 24. Ne5 {[%clk 00:48:39]} {[%emt 00:05:26]} Qc7 {[%clk 00:39:29]}
{[%emt 00:07:50]} 25. Ng4 {[%clk 00:48:00]} {[%emt 00:01:09]} Bg5 {[%clk
00:38:59]} {[%emt 00:01:01]} 26. Ne3 {[%clk 00:47:59]} {[%emt 00:00:31]} f5
{[%clk 00:31:03]} {[%emt 00:08:26]} 27. h4 {[%clk 00:40:24]} {[%emt 00:08:05]}
Bxh4 {[%clk 00:27:37]} {[%emt 00:03:56]} 28. Nxf5 {[%clk 00:40:01]} {[%emt
00:00:52]} Bxf2+ {[%clk 00:27:19]} {[%emt 00:00:48]} 29. Qxf2 {[%clk 00:37:04]}
{[%emt 00:03:27]} exf5 {[%clk 00:27:36]} {[%emt 00:00:13]} 30. Qxf5 {[%clk
00:35:58]} {[%emt 00:01:36]} Re1+ {[%clk 00:21:49]} {[%emt 00:06:17]} 31. Kf2
{[%clk 00:35:59]} {[%emt 00:00:29]} Re7 {[%clk 00:21:59]} {[%emt 00:00:21]} 32.
Kg1 {[%clk 00:32:01]} {[%emt 00:04:26]} Rf7 {[%clk 00:21:19]} {[%emt 00:01:12]}
33. Qe4 {[%clk 00:30:51]} {[%emt 00:01:39]} Qb6+ {[%clk 00:18:49]} {[%emt
00:03:01]} 34. Kh2 {[%clk 00:22:37]} {[%emt 00:08:43]} Qc7+ {[%clk 00:15:20]}
{[%emt 00:04:00]} 35. Kg1 {[%clk 00:16:39]} {[%emt 00:06:27]} Qb6+ {[%clk
00:15:16]} {[%emt 00:00:35]} 36. Kh2 {[%clk 00:16:58]} {[%emt 00:00:09]}
1/2-1/2

[Event "Masters Tournament (MTO)"]
[Site "Biel, Switzerland"]
[Date "2026.07.22"]
[Round "9.16"]
[White "Ragavan, Samarth Rajesh"]
[Black "Kukushkin, Ivan"]
[Result "0-1"]
[TimeControl "100+30+30sec/move"]
[WhiteTitle "-"]
[BlackTitle "-"]
[WhiteFideId "39918106"]
[BlackFideId "11634103"]
[WhiteElo "2106"]
[BlackElo "2257"]

1. c4 {[%clk 01:40:59]} {[%emt 05:49:03]} e6 {[%clk 01:37:38]} {[%emt
00:03:22]} 2. d4 {[%clk 01:41:21]} {[%emt 00:00:08]} Nf6 {[%clk 01:38:03]}
{[%emt 00:00:05]} 3. g3 {[%clk 01:41:48]} {[%emt 00:00:04]} Bb4+ {[%clk
01:38:25]} {[%emt 00:00:08]} 4. Bd2 {[%clk 01:42:13]} {[%emt 00:00:05]} a5
{[%clk 01:36:58]} {[%emt 00:01:57]} 5. Bg2 {[%clk 01:42:32]} {[%emt 00:00:10]}
d5 {[%clk 01:36:21]} {[%emt 00:01:07]} 6. a3 {[%clk 01:42:45]} {[%emt
00:00:18]} Be7 {[%clk 01:33:27]} {[%emt 00:03:25]} 7. cxd5 {[%clk 01:41:31]}
{[%emt 00:01:44]} exd5 {[%clk 01:33:21]} {[%emt 00:00:36]} 8. Nf3 {[%clk
01:41:56]} {[%emt 00:00:03]} O-O {[%clk 01:32:55]} {[%emt 00:00:56]} 9. O-O
{[%clk 01:42:22]} {[%emt 00:00:04]} c6 {[%clk 01:31:47]} {[%emt 00:01:38]} 10.
Nc3 {[%clk 01:36:14]} {[%emt 00:06:38]} Bf5 {[%clk 01:28:27]} {[%emt 00:03:50]}
11. Nh4 {[%clk 01:35:22]} {[%emt 00:01:23]} Be6 {[%clk 01:27:12]} {[%emt
00:01:46]} 12. Nf3 {[%clk 01:32:10]} {[%emt 00:03:41]} Nbd7 {[%clk 01:22:20]}
{[%emt 00:05:21]} 13. h3 {[%clk 01:29:53]} {[%emt 00:02:47]} h6 {[%clk
01:21:43]} {[%emt 00:01:08]} 14. Ne5 {[%clk 01:25:29]} {[%emt 00:04:53]} Nxe5
{[%clk 01:03:41]} {[%emt 00:18:32]} 15. dxe5 {[%clk 01:25:52]} {[%emt
00:00:06]} Nd7 {[%clk 01:04:06]} {[%emt 00:00:07]} 16. f4 {[%clk 01:25:46]}
{[%emt 00:00:36]} f5 {[%clk 01:04:01]} {[%emt 00:00:35]} 17. Be3 {[%clk
01:10:41]} {[%emt 00:15:34]} Nc5 {[%clk 01:02:03]} {[%emt 00:02:29]} 18. Bd4
{[%clk 01:06:46]} {[%emt 00:04:23]} Ne4 {[%clk 00:54:26]} {[%emt 00:08:09]} 19.
Nxe4 {[%clk 01:03:21]} {[%emt 00:03:55]} dxe4 {[%clk 00:54:27]} {[%emt
00:00:29]} 20. Rc1 {[%clk 01:03:09]} {[%emt 00:00:41]} Qd5 {[%clk 00:50:36]}
{[%emt 00:04:22]} 21. e3 {[%clk 00:59:39]} {[%emt 00:04:00]} c5 {[%clk
00:40:01]} {[%emt 00:11:05]} 22. Bc3 {[%clk 00:59:49]} {[%emt 00:00:20]} Rfd8
{[%clk 00:37:47]} {[%emt 00:02:44]} 23. Qe1 {[%clk 00:53:34]} {[%emt 00:06:45]}
a4 {[%clk 00:36:15]} {[%emt 00:02:02]} 24. Kh2 {[%clk 00:50:02]} {[%emt
00:04:02]} b5 {[%clk 00:33:16]} {[%emt 00:03:29]} 25. g4 {[%clk 00:44:24]}
{[%emt 00:06:08]} Kh7 {[%clk 00:24:59]} {[%emt 00:08:46]} 26. Rg1 {[%clk
00:34:51]} {[%emt 00:10:03]} Bf8 {[%clk 00:22:01]} {[%emt 00:03:28]} 27. Qg3
{[%clk 00:32:25]} {[%emt 00:02:55]} Qd7 {[%clk 00:20:30]} {[%emt 00:02:02]} 28.
h4 {[%clk 00:20:08]} {[%emt 00:12:48]} Qf7 {[%clk 00:18:41]} {[%emt 00:02:19]}
29. g5 {[%clk 00:20:17]} {[%emt 00:00:21]} Qh5 {[%clk 00:14:07]} {[%emt
00:05:04]} 30. Qh3 {[%clk 00:19:40]} {[%emt 00:01:07]} b4 {[%clk 00:11:50]}
{[%emt 00:02:47]} 31. Be1 {[%clk 00:17:19]} {[%emt 00:02:50]} Qe2 {[%clk
00:11:21]} {[%emt 00:01:00]} 32. gxh6 {[%clk 00:16:38]} {[%emt 00:01:11]} Rd3
{[%clk 00:08:17]} {[%emt 00:03:33]} 33. hxg7 {[%clk 00:14:53]} {[%emt
00:02:14]} Bxg7 {[%clk 00:08:02]} {[%emt 00:00:47]} 34. Rxc5 {[%clk 00:12:32]}
{[%emt 00:02:50]} bxa3 {[%clk 00:07:32]} {[%emt 00:01:01]} 35. bxa3 {[%clk
00:12:32]} {[%emt 00:00:29]} Rxe3 {[%clk 00:07:37]} {[%emt 00:00:26]} 36. Bg3
{[%clk 00:12:40]} {[%emt 00:00:22]} Bh6 {[%clk 00:06:49]} {[%emt 00:01:18]} 37.
Rc7+ {[%clk 00:10:21]} {[%emt 00:02:49]} Kh8 {[%clk 00:07:00]} {[%emt
00:00:19]} 38. Re1 {[%clk 00:10:14]} {[%emt 00:00:36]} Qxe1 {[%clk 00:06:43]}
{[%emt 00:00:47]} 39. Bxe1 {[%clk 00:10:33]} {[%emt 00:00:11]} Bxf4+ {[%clk
00:06:40]} {[%emt 00:00:33]} 40. Bg3 {[%clk 00:10:50]} {[%emt 00:00:13]} Rxg3
{[%clk 00:05:14]} {[%emt 00:01:57]} 41. Qxg3 {[%clk 00:10:59]} {[%emt
00:00:21]} Bxg3+ {[%clk 00:05:38]} {[%emt 00:00:05]} 42. Kxg3 {[%clk 00:11:25]}
{[%emt 00:00:03]} Rg8+ {[%clk 00:05:15]} {[%emt 00:00:54]} 43. Kh2 {[%clk
00:11:24]} {[%emt 00:00:31]} Bd5 {[%clk 00:04:29]} {[%emt 00:01:17]} 44. Rc5
{[%clk 00:10:32]} {[%emt 00:01:21]} Bb3 {[%clk 00:03:34]} {[%emt 00:01:25]} 45.
Rc3 {[%clk 00:08:58]} {[%emt 00:02:05]} Rd8 {[%clk 00:02:45]} {[%emt 00:01:19]}
46. Rc6 {[%clk 00:06:24]} {[%emt 00:03:03]} Rd2 {[%clk 00:01:04]} {[%emt
00:02:11]} 47. e6 {[%clk 00:04:14]} {[%emt 00:02:40]} Kg7 {[%clk 00:29:50]}
{[%emt 00:01:44]} 48. e7 {[%clk 00:34:17]} {[%emt 00:00:28]} Kf7 {[%clk
00:27:10]} {[%emt 00:03:09]} 49. Rf6+ {[%clk 00:34:23]} {[%emt 00:00:25]} Kxe7
{[%clk 00:27:34]} {[%emt 00:00:05]} 50. Rxf5 {[%clk 00:34:49]} {[%emt
00:00:04]} Ke6 {[%clk 00:27:22]} {[%emt 00:00:42]} 51. Rg5 {[%clk 00:30:14]}
{[%emt 00:05:06]} e3 {[%clk 00:25:48]} {[%emt 00:02:04]} 52. Kg3 {[%clk
00:29:57]} {[%emt 00:00:47]} e2 {[%clk 00:25:18]} {[%emt 00:00:59]} 53. Kf2
{[%clk 00:29:45]} {[%emt 00:00:41]} Bc4 {[%clk 00:25:03]} {[%emt 00:00:46]} 54.
Bh3+ {[%clk 00:29:50]} {[%emt 00:00:25]} Kd6 {[%clk 00:24:49]} {[%emt
00:00:45]} 55. Rg1 {[%clk 00:30:05]} {[%emt 00:00:14]} Rd4 {[%clk 00:24:19]}
{[%emt 00:01:00]} 56. Bg4 {[%clk 00:29:20]} {[%emt 00:01:15]} Rf4+ {[%clk
00:24:39]} {[%emt 00:00:11]} 57. Ke3 {[%clk 00:29:09]} {[%emt 00:00:41]} Rxg4
{[%clk 00:24:36]} {[%emt 00:00:33]} 58. Kf2 {[%emt 00:00:04]} Rd4 0-1

[Event "Masters Tournament (MTO)"]
[Site "Biel, Switzerland"]
[Date "2026.07.22"]
[Round "9.17"]
[White "Matsumura, Cocoro"]
[Black "Monteverde, Jonathan"]
[Result "1-0"]
[TimeControl "100+30+30sec/move"]
[WhiteTitle "-"]
[BlackTitle "-"]
[WhiteFideId "36087114"]
[BlackFideId "1314580"]
[WhiteElo "2225"]
[BlackElo "2098"]

1. e4 {[%clk 01:40:34]} {[%emt 00:00:22]} c5 {[%clk 01:40:52]} {[%emt
00:00:09]} 2. Nf3 {[%clk 01:40:44]} {[%emt 00:00:20]} d6 {[%clk 01:41:17]}
{[%emt 00:00:05]} 3. d4 {[%clk 01:41:09]} {[%emt 00:00:04]} cxd4 {[%clk
01:41:43]} {[%emt 00:00:05]} 4. Nxd4 {[%clk 01:41:35]} {[%emt 00:00:04]} Nf6
{[%clk 01:42:09]} {[%emt 00:00:04]} 5. Nc3 {[%clk 01:42:01]} {[%emt 00:00:04]}
a6 {[%clk 01:42:36]} {[%emt 00:00:03]} 6. Bg5 {[%clk 01:42:25]} {[%emt
00:00:04]} e6 {[%clk 01:42:32]} {[%emt 00:00:35]} 7. Qf3 {[%clk 01:42:44]}
{[%emt 00:00:11]} Be7 {[%clk 01:36:46]} {[%emt 00:06:16]} 8. O-O-O {[%clk
01:41:58]} {[%emt 00:01:16]} Qc7 {[%clk 01:35:34]} {[%emt 00:01:43]} 9. g4
{[%clk 01:41:35]} {[%emt 00:00:53]} Nbd7 {[%clk 01:28:24]} {[%emt 00:07:39]} 10.
Bd2 {[%clk 01:41:54]} {[%emt 00:00:11]} Qb6 {[%clk 01:07:08]} {[%emt 00:21:47]}
11. Nb3 {[%clk 00:57:46]} {[%emt 00:44:38]} Ne5 {[%clk 01:00:09]} {[%emt
00:07:29]} 12. Qe2 {[%clk 00:56:55]} {[%emt 00:01:21]} Nexg4 {[%clk 01:00:05]}
{[%emt 00:00:33]} 13. Rg1 {[%clk 00:49:10]} {[%emt 00:08:16]} Qxf2 {[%clk
00:47:00]} {[%emt 00:13:35]} 14. Rxg4 {[%clk 00:48:43]} {[%emt 00:00:57]} Qxe2
{[%clk 00:46:10]} {[%emt 00:01:20]} 15. Bxe2 {[%clk 00:49:07]} {[%emt
00:00:06]} Nxg4 {[%clk 00:46:32]} {[%emt 00:00:08]} 16. Bxg4 {[%clk 00:49:34]}
{[%emt 00:00:03]} Bf6 {[%clk 00:42:26]} {[%emt 00:04:36]} 17. Na4 {[%clk
00:41:00]} {[%emt 00:09:04]} Be5 {[%clk 00:39:25]} {[%emt 00:03:30]} 18. Nb6
{[%clk 00:36:02]} {[%emt 00:05:28]} Rb8 {[%clk 00:39:48]} {[%emt 00:00:08]} 19.
Bb4 {[%clk 00:35:19]} {[%emt 00:01:12]} Bd7 {[%clk 00:26:29]} {[%emt 00:13:49]}
20. Nxd7 {[%clk 00:31:56]} {[%emt 00:03:53]} Kxd7 {[%clk 00:26:25]} {[%emt
00:00:35]} 21. Bxd6 {[%clk 00:32:05]} {[%emt 00:00:21]} Bxd6 {[%clk 00:26:37]}
{[%emt 00:00:18]} 22. e5 {[%clk 00:32:29]} {[%emt 00:00:06]} Rhd8 {[%clk
00:19:55]} {[%emt 00:07:12]} 23. exd6 {[%clk 00:28:21]} {[%emt 00:04:38]} b6
{[%clk 00:16:53]} {[%emt 00:03:32]} 24. Be2 {[%clk 00:27:21]} {[%emt 00:01:31]}
Ra8 {[%clk 00:17:07]} {[%emt 00:00:16]} 25. Bf3 {[%clk 00:27:35]} {[%emt
00:00:15]} Rab8 {[%clk 00:17:25]} {[%emt 00:00:12]} 26. a4 {[%clk 00:25:55]}
{[%emt 00:02:10]} Rdc8 {[%clk 00:17:12]} {[%emt 00:00:42]} 27. Nd4 {[%clk
00:16:55]} {[%emt 00:09:31]} g6 {[%clk 00:14:06]} {[%emt 00:03:36]} 28. b4
{[%clk 00:15:46]} {[%emt 00:01:39]} e5 {[%clk 00:13:48]} {[%emt 00:00:47]} 29.
Nb3 {[%clk 00:13:25]} {[%emt 00:02:51]} f5 {[%clk 00:08:40]} {[%emt 00:05:39]}
30. Bd5 {[%clk 00:13:24]} {[%emt 00:00:31]} Rc3 {[%clk 00:05:38]} {[%emt
00:03:32]} 31. Kb2 {[%clk 00:13:36]} {[%emt 00:00:18]} Re3 {[%clk 00:05:17]}
{[%emt 00:00:50]} 32. Bc4 {[%clk 00:13:25]} {[%emt 00:00:42]} Ra8 {[%clk
00:05:10]} {[%emt 00:00:37]} 33. a5 {[%clk 00:13:45]} {[%emt 00:00:10]} bxa5
{[%clk 00:04:29]} {[%emt 00:01:11]} 34. Nc5+ {[%clk 00:13:49]} {[%emt
00:00:26]} Kd8 {[%clk 00:04:36]} {[%emt 00:00:23]} 35. d7 {[%clk 00:09:35]}
{[%emt 00:04:43]} 1-0

[Event "Masters Tournament (MTO)"]
[Site "Biel, Switzerland"]
[Date "2026.07.22"]
[Round "9.18"]
[White "Iafelice, Vincenzo"]
[Black "Schnell, Simon"]
[Result "1/2-1/2"]
[TimeControl "100+30+30sec/move"]
[WhiteTitle "-"]
[BlackTitle "-"]
[WhiteFideId "810541"]
[BlackFideId "1345311"]
[WhiteElo "2086"]
[BlackElo "2211"]

1. e4 {[%clk 01:40:57]} {[%emt 00:00:03]} c6 {[%clk 01:40:56]} {[%emt
00:00:04]} 2. Nf3 {[%clk 01:41:19]} {[%emt 00:00:08]} d5 {[%clk 01:41:22]}
{[%emt 00:00:05]} 3. exd5 {[%clk 01:41:32]} {[%emt 00:00:17]} cxd5 {[%clk
01:41:47]} {[%emt 00:00:05]} 4. d4 {[%clk 01:41:53]} {[%emt 00:00:07]} Nf6
{[%clk 01:42:08]} {[%emt 00:00:10]} 5. Ne5 {[%clk 01:36:49]} {[%emt 00:05:34]}
g6 {[%clk 01:42:29]} {[%emt 00:00:09]} 6. Bb5+ {[%clk 01:32:46]} {[%emt
00:04:34]} Nbd7 {[%clk 01:42:24]} {[%emt 00:00:34]} 7. O-O {[%clk 01:32:30]}
{[%emt 00:00:46]} Bg7 {[%clk 01:42:49]} {[%emt 00:00:05]} 8. c3 {[%clk
01:29:28]} {[%emt 00:03:32]} O-O {[%clk 01:43:10]} {[%emt 00:00:08]} 9. f4
{[%clk 01:26:40]} {[%emt 00:03:19]} Ne4 {[%clk 01:35:05]} {[%emt 00:08:36]} 10.
Bd3 {[%clk 01:20:23]} {[%emt 00:06:46]} Nxe5 {[%clk 01:22:13]} {[%emt
00:13:22]} 11. fxe5 {[%clk 01:20:47]} {[%emt 00:00:07]} f6 {[%clk 01:22:27]}
{[%emt 00:00:16]} 12. exf6 {[%clk 01:19:39]} {[%emt 00:01:38]} exf6 {[%clk
01:19:27]} {[%emt 00:03:30]} 13. Nd2 {[%clk 01:06:31]} {[%emt 00:13:37]} f5
{[%clk 01:18:24]} {[%emt 00:01:33]} 14. g3 {[%clk 00:49:40]} {[%emt 00:17:21]}
h6 {[%clk 01:11:11]} {[%emt 00:07:44]} 15. Nf3 {[%clk 00:47:19]} {[%emt
00:02:50]} g5 {[%clk 01:09:43]} {[%emt 00:01:58]} 16. Ne1 {[%clk 00:47:10]}
{[%emt 00:00:39]} Be6 {[%clk 01:02:41]} {[%emt 00:07:32]} 17. Ng2 {[%clk
00:44:04]} {[%emt 00:03:36]} Qe8 {[%clk 00:54:42]} {[%emt 00:08:29]} 18. Be3
{[%clk 00:42:16]} {[%emt 00:02:18]} Qg6 {[%clk 00:53:26]} {[%emt 00:01:46]} 19.
Be2 {[%clk 00:30:39]} {[%emt 00:12:07]} Bf6 {[%clk 00:50:46]} {[%emt 00:03:11]}
20. Kh1 {[%clk 00:28:41]} {[%emt 00:02:27]} Be7 {[%clk 00:50:35]} {[%emt
00:00:41]} 21. Bh5 {[%clk 00:20:37]} {[%emt 00:08:34]} Qg7 {[%clk 00:49:45]}
{[%emt 00:01:20]} 22. Bf3 {[%clk 00:17:11]} {[%emt 00:03:56]} Bd6 {[%clk
00:49:50]} {[%emt 00:00:25]} 23. Ne1 {[%clk 00:15:45]} {[%emt 00:01:57]} Kh8
{[%clk 00:44:57]} {[%emt 00:05:22]} 24. Nd3 {[%clk 00:15:51]} {[%emt 00:00:24]}
Rf6 {[%clk 00:35:10]} {[%emt 00:10:17]} 25. Nc5 {[%clk 00:10:25]} {[%emt
00:05:56]} Bg8 {[%clk 00:33:36]} {[%emt 00:02:04]} 26. Bg2 {[%clk 00:07:48]}
{[%emt 00:03:06]} Raf8 {[%clk 00:32:30]} {[%emt 00:01:36]} 27. Nxe4 {[%clk
00:03:05]} {[%emt 00:05:14]} fxe4 {[%clk 00:29:42]} {[%emt 00:03:18]} 28. Qe2
{[%clk 00:03:17]} {[%emt 00:00:18]} Be6 {[%clk 00:28:12]} {[%emt 00:01:59]} 29.
Rxf6 {[%clk 00:03:22]} {[%emt 00:00:26]} Rxf6 {[%clk 00:28:37]} {[%emt
00:00:05]} 30. Rf1 {[%clk 00:03:45]} {[%emt 00:00:07]} Rxf1+ {[%clk 00:28:13]}
{[%emt 00:00:54]} 31. Qxf1 {[%clk 00:04:13]} {[%emt 00:00:02]} Qg6 {[%clk
00:22:56]} {[%emt 00:05:47]} 32. Kg1 {[%clk 00:03:23]} {[%emt 00:01:20]} Kg7
{[%clk 00:22:14]} {[%emt 00:01:12]} 33. Qb5 {[%clk 00:03:33]} {[%emt 00:00:21]}
Qf7 {[%clk 00:21:10]} {[%emt 00:01:33]} 34. Qf1 {[%clk 00:03:41]} {[%emt
00:00:21]} a6 {[%clk 00:21:07]} {[%emt 00:00:34]} 35. Qxf7+ {[%clk 00:04:03]}
{[%emt 00:00:08]} Kxf7 {[%clk 00:21:31]} {[%emt 00:00:06]} 36. Kf2 {[%clk
00:04:22]} {[%emt 00:00:11]} b5 {[%clk 00:21:19]} {[%emt 00:00:43]} 37. Bf1
{[%clk 00:04:42]} {[%emt 00:00:09]} Kf6 {[%clk 00:20:56]} {[%emt 00:00:53]} 38.
a4 {[%clk 00:03:41]} {[%emt 00:01:32]} Bd7 {[%clk 00:19:38]} {[%emt 00:01:48]}
39. a5 {[%clk 00:03:56]} {[%emt 00:00:14]} h5 {[%clk 00:18:57]} {[%emt
00:01:11]} 40. Be2 {[%clk 00:03:15]} {[%emt 00:01:12]} h4 {[%clk 00:18:14]}
{[%emt 00:01:13]} 41. b4 {[%clk 00:03:05]} {[%emt 00:00:39]} Bh3 {[%clk
00:17:52]} {[%emt 00:00:51]} 42. Bd2 {[%clk 00:03:00]} {[%emt 00:00:36]} Kf5
{[%clk 00:16:45]} {[%emt 00:01:37]} 43. Be3 {[%clk 00:02:43]} {[%emt 00:00:47]}
Bg4 {[%clk 00:16:14]} {[%emt 00:01:01]} 44. Bf1 {[%clk 00:02:11]} {[%emt
00:01:01]} Kg6 {[%clk 00:15:45]} {[%emt 00:00:59]} 45. Bd2 {[%clk 00:26:23]}
{[%emt 00:06:20]} Kh5 {[%clk 00:45:52]} {[%emt 00:00:22]} 46. Be3 {[%clk
00:26:26]} {[%emt 00:00:27]} Bd1 {[%clk 00:45:12]} {[%emt 00:01:09]} 47. Bh3
{[%clk 00:26:28]} {[%emt 00:00:28]} Bg4 {[%clk 00:45:37]} {[%emt 00:00:07]} 48.
Bf1 {[%clk 00:26:54]} {[%emt 00:00:03]} Bd1 {[%clk 00:42:28]} {[%emt 00:03:39]}
49. Bh3 {[%clk 00:27:16]} {[%emt 00:00:07]} Bg4 {[%clk 00:41:51]} {[%emt
00:01:08]} 1/2-1/2